[Event "Late-Titled-Tuesday-Blitz-March-12-2024"]
[Site "Chess.com"]
[Date "2024.03.12"]
[Round "10"]
[White "MatthewG-p4p"]
[Black "DanielNaroditsky"]
[Result "0-1"]
[WhiteElo "2909"]
[BlackElo "3072"]
[TimeControl "180+1"]
[EndTime "15:53:17 PDT"]
[Termination "DanielNaroditsky won by resignation"]

1. e4 {[%clk 0:03:00.7]} 1... Nf6 {[%clk 0:02:54.3]} 2. e5 {[%clk 0:02:59.6]}
2... Nd5 {[%clk 0:02:54.8]} 3. d4 {[%clk 0:02:59.8]} 3... d6 {[%clk 0:02:55]} 4.
Nf3 {[%clk 0:02:58.5]} 4... dxe5 {[%clk 0:02:55.4]} 5. Nxe5 {[%clk 0:02:59.4]}
5... c6 {[%clk 0:02:55.8]} 6. Be2 {[%clk 0:02:59]} 6... Bf5 {[%clk 0:02:52.7]}
7. O-O {[%clk 0:02:58.5]} 7... Nd7 {[%clk 0:02:53]} 8. Nf3 {[%clk 0:02:58.1]}
8... e6 {[%clk 0:02:53.4]} 9. c4 {[%clk 0:02:48.1]} 9... N5f6 {[%clk 0:02:51.3]}
10. Nc3 {[%clk 0:02:46.5]} 10... Bd6 {[%clk 0:02:51.4]} 11. Nh4 {[%clk
0:02:29.1]} 11... Bg6 {[%clk 0:02:50.9]} 12. g3 {[%clk 0:02:27.3]} 12... O-O
{[%clk 0:02:50.5]} 13. c5 {[%clk 0:02:19]} 13... Bc7 {[%clk 0:02:45.5]} 14. Nxg6
{[%clk 0:02:16.8]} 14... hxg6 {[%clk 0:02:45.7]} 15. b4 {[%clk 0:02:15.4]} 15...
Qe7 {[%clk 0:02:35.9]} 16. Re1 {[%clk 0:02:12.8]} 16... Rad8 {[%clk 0:02:34.9]}
17. Qb3 {[%clk 0:02:06.7]} 17... e5 {[%clk 0:02:16.1]} 18. d5 {[%clk 0:01:57.6]}
18... cxd5 {[%clk 0:01:55.1]} 19. Nxd5 {[%clk 0:01:58.5]} 19... Nxd5 {[%clk
0:01:50.2]} 20. Qxd5 {[%clk 0:01:56.6]} 20... b6 {[%clk 0:01:44.8]} 21. cxb6
{[%clk 0:01:38.1]} 21... Bxb6 {[%clk 0:01:42.7]} 22. Qb3 {[%clk 0:01:33.3]}
22... e4 {[%clk 0:01:35]} 23. Bf1 {[%clk 0:01:23.7]} 23... Bxf2+ {[%clk
0:01:06.5]} 24. Kxf2 {[%clk 0:01:21.4]} 24... Qf6+ {[%clk 0:01:07.2]} 25. Ke2
{[%clk 0:01:07.2]} 25... Nc5 {[%clk 0:01:07.3]} 26. bxc5 {[%clk 0:00:58.9]}
26... Rd3 {[%clk 0:00:58.5]} 27. Bf4 {[%clk 0:00:55.2]} 27... Rxb3 {[%clk
0:00:57.7]} 28. axb3 {[%clk 0:00:55.5]} 28... Qb2+ {[%clk 0:00:57.3]} 29. Ke3
{[%clk 0:00:33.7]} 29... Qc3+ {[%clk 0:00:40.1]} 30. Kf2 {[%clk 0:00:30.3]}
30... Rd8 {[%clk 0:00:40.6]} 31. Bd6 {[%clk 0:00:27.8]} 31... Qd4+ {[%clk
0:00:38.8]} 32. Kg2 {[%clk 0:00:27.9]} 32... e3 {[%clk 0:00:37.9]} 33. Rad1
{[%clk 0:00:25.1]} 33... Qe4+ {[%clk 0:00:38.6]} 34. Kg1 {[%clk 0:00:24.6]}
34... Re8 {[%clk 0:00:39.5]} 35. Rd3 {[%clk 0:00:17.5]} 35... Qf3 {[%clk
0:00:36]} 36. Bf4 {[%clk 0:00:15.5]} 36... Qf2+ {[%clk 0:00:35.9]} 37. Kh1
{[%clk 0:00:04.3]} 37... Qxe1 {[%clk 0:00:36.8]} 0-1

[Event "Late-Titled-Tuesday-Blitz-March-12-2024"]
[Site "Chess.com"]
[Date "2024.03.12"]
[Round "10"]
[White "LUISMIGUELOV"]
[Black "cristiano78"]
[Result "1/2-1/2"]
[WhiteElo "2119"]
[BlackElo "2246"]
[TimeControl "180+1"]
[EndTime "15:53:19 PDT"]
[Termination "Game drawn by repetition"]

1. d4 {[%clk 0:02:56.4]} 1... Nf6 {[%clk 0:02:55.4]} 2. Nf3 {[%clk 0:02:56.5]}
2... g6 {[%clk 0:02:55.1]} 3. Bg5 {[%clk 0:02:56.7]} 3... Bg7 {[%clk 0:02:55.2]}
4. Nbd2 {[%clk 0:02:54.6]} 4... h6 {[%clk 0:02:55]} 5. Bh4 {[%clk 0:02:53.8]}
5... d6 {[%clk 0:02:54.6]} 6. e4 {[%clk 0:02:53.7]} 6... g5 {[%clk 0:02:54.5]}
7. Bg3 {[%clk 0:02:53.1]} 7... Nh5 {[%clk 0:02:55.2]} 8. Bc4 {[%clk 0:02:50.8]}
8... e6 {[%clk 0:02:54.7]} 9. c3 {[%clk 0:02:49.3]} 9... Qe7 {[%clk 0:02:54.3]}
10. e5 {[%clk 0:02:42.9]} 10... d5 {[%clk 0:02:53.1]} 11. Bb5+ {[%clk
0:02:37.8]} 11... Bd7 {[%clk 0:02:53]} 12. Be2 {[%clk 0:02:36.7]} 12... c5
{[%clk 0:02:47.7]} 13. Qb3 {[%clk 0:02:30.3]} 13... Bc6 {[%clk 0:02:44]} 14.
dxc5 {[%clk 0:02:26.8]} 14... Nd7 {[%clk 0:02:38.6]} 15. Nd4 {[%clk 0:02:25.9]}
15... Nxc5 {[%clk 0:02:33.8]} 16. Qa3 {[%clk 0:02:10]} 16... Nxg3 {[%clk
0:02:32.1]} 17. Nxc6 {[%clk 0:02:03]} 17... bxc6 {[%clk 0:02:29.2]} 18. hxg3
{[%clk 0:02:03.5]} 18... Bxe5 {[%clk 0:02:26.8]} 19. Nf3 {[%clk 0:01:57.4]}
19... Bd6 {[%clk 0:02:26.2]} 20. Qa5 {[%clk 0:01:49.7]} 20... Ne4 {[%clk
0:02:24.5]} 21. Qa6 {[%clk 0:01:39]} 21... Qc7 {[%clk 0:02:19]} 22. Nd4 {[%clk
0:01:35.9]} 22... Rc8 {[%clk 0:02:15.8]} 23. Nxc6 {[%clk 0:01:33.1]} 23... Bxg3
{[%clk 0:02:07.3]} 24. O-O {[%clk 0:01:12.2]} 24... Bh2+ {[%clk 0:02:04]} 25.
Kh1 {[%clk 0:01:11.7]} 25... Kf8 {[%clk 0:02:00.2]} 26. Qxa7 {[%clk 0:00:47.6]}
26... Qxc6 {[%clk 0:01:50.1]} 27. Kxh2 {[%clk 0:00:47.1]} 27... Kg7 {[%clk
0:01:46.1]} 28. Qd4+ {[%clk 0:00:45]} 28... f6 {[%clk 0:01:44.9]} 29. Bf3 {[%clk
0:00:35.4]} 29... Qd6+ {[%clk 0:01:42.2]} 30. g3 {[%clk 0:00:33.7]} 30... Rc4
{[%clk 0:01:38.8]} 31. Qd3 {[%clk 0:00:26.4]} 31... h5 {[%clk 0:01:38]} 32. Bxe4
{[%clk 0:00:22.9]} 32... Rxe4 {[%clk 0:01:37.4]} 33. Rae1 {[%clk 0:00:22.7]}
33... Rxe1 {[%clk 0:01:34.2]} 34. Rxe1 {[%clk 0:00:21.7]} 34... h4 {[%clk
0:01:34.4]} 35. Kg2 {[%clk 0:00:18.8]} 35... hxg3 {[%clk 0:01:34.5]} 36. fxg3
{[%clk 0:00:18.4]} 36... e5 {[%clk 0:01:30.7]} 37. Rh1 {[%clk 0:00:17.8]} 37...
Rxh1 {[%clk 0:01:27.7]} 38. Kxh1 {[%clk 0:00:17.2]} 38... e4 {[%clk 0:01:23.9]}
39. Qe3 {[%clk 0:00:16.5]} 39... Qe5 {[%clk 0:01:22.2]} 40. Kg2 {[%clk
0:00:15.9]} 40... Kg6 {[%clk 0:01:22.1]} 41. g4 {[%clk 0:00:14.1]} 41... f5
{[%clk 0:01:20.5]} 42. gxf5+ {[%clk 0:00:13.5]} 42... Kxf5 {[%clk 0:01:21.3]}
43. Qf2+ {[%clk 0:00:12.6]} 43... Qf4 {[%clk 0:01:21.3]} 44. Qxf4+ {[%clk
0:00:11.7]} 44... gxf4 {[%clk 0:01:21.8]} 45. a4 {[%clk 0:00:11.5]} 45... Ke5
{[%clk 0:01:20.5]} 46. a5 {[%clk 0:00:11.4]} 46... Kd6 {[%clk 0:01:20.5]} 47. b4
{[%clk 0:00:11.2]} 47... Kc6 {[%clk 0:01:15]} 48. a6 {[%clk 0:00:11]} 48... Kb6
{[%clk 0:01:14.7]} 49. b5 {[%clk 0:00:11.3]} 49... Ka7 {[%clk 0:01:04.7]} 50.
Kf2 {[%clk 0:00:11.1]} 50... Kb6 {[%clk 0:01:01.6]} 51. Ke2 {[%clk 0:00:11.1]}
51... Ka7 {[%clk 0:01:01.7]} 52. Kf2 {[%clk 0:00:11.1]} 52... Kb6 {[%clk
0:01:01.9]} 53. Ke2 {[%clk 0:00:11.3]} 53... Ka7 {[%clk 0:01:00.7]} 54. Kd2
{[%clk 0:00:11.4]} 54... Kb6 {[%clk 0:00:59.9]} 55. Ke2 {[%clk 0:00:11.4]}
1/2-1/2

[Event "Late-Titled-Tuesday-Blitz-March-12-2024"]
[Site "Chess.com"]
[Date "2024.03.12"]
[Round "10"]
[White "LornerAcosta"]
[Black "Machidon"]
[Result "0-1"]
[WhiteElo "2611"]
[BlackElo "2524"]
[TimeControl "180+1"]
[EndTime "15:53:20 PDT"]
[Termination "Machidon won on time"]

1. Nf3 {[%clk 0:02:57.6]} 1... Nf6 {[%clk 0:02:43.6]} 2. d4 {[%clk 0:02:56.4]}
2... e6 {[%clk 0:02:41.6]} 3. e3 {[%clk 0:02:56.4]} 3... c5 {[%clk 0:02:40.9]}
4. Bd3 {[%clk 0:02:57]} 4... b6 {[%clk 0:02:41.1]} 5. O-O {[%clk 0:02:56.9]}
5... Bb7 {[%clk 0:02:41.7]} 6. Nbd2 {[%clk 0:02:57.4]} 6... Be7 {[%clk
0:02:40.7]} 7. b3 {[%clk 0:02:57.8]} 7... O-O {[%clk 0:02:39.9]} 8. Bb2 {[%clk
0:02:58.1]} 8... Nc6 {[%clk 0:02:39.4]} 9. c4 {[%clk 0:02:53]} 9... cxd4 {[%clk
0:02:39]} 10. exd4 {[%clk 0:02:49.4]} 10... d5 {[%clk 0:02:39.3]} 11. Rc1 {[%clk
0:02:47.9]} 11... Bd6 {[%clk 0:02:38.1]} 12. c5 {[%clk 0:02:39.4]} 12... Bc7
{[%clk 0:02:33.4]} 13. a3 {[%clk 0:02:36.8]} 13... bxc5 {[%clk 0:02:28.4]} 14.
Rxc5 {[%clk 0:02:23.3]} 14... Qe7 {[%clk 0:02:27.8]} 15. b4 {[%clk 0:02:08.3]}
15... Bd6 {[%clk 0:02:20.9]} 16. Rc1 {[%clk 0:02:06.8]} 16... a5 {[%clk
0:02:10.8]} 17. b5 {[%clk 0:01:58.2]} 17... Na7 {[%clk 0:02:10.7]} 18. a4 {[%clk
0:01:57.2]} 18... Ne4 {[%clk 0:02:08.3]} 19. Nb3 {[%clk 0:01:27.3]} 19... Nc8
{[%clk 0:02:01.8]} 20. Ne5 {[%clk 0:01:23.2]} 20... Nb6 {[%clk 0:01:53.2]} 21.
Nc6 {[%clk 0:01:14.1]} 21... Bxc6 {[%clk 0:01:53.1]} 22. Rxc6 {[%clk 0:01:09.9]}
22... Nxa4 {[%clk 0:01:52.5]} 23. Ba1 {[%clk 0:01:09.8]} 23... Bb4 {[%clk
0:01:47.2]} 24. Qc2 {[%clk 0:01:01]} 24... Rfb8 {[%clk 0:01:20.8]} 25. Bxe4
{[%clk 0:00:56]} 25... dxe4 {[%clk 0:01:21.7]} 26. Qxe4 {[%clk 0:00:55.7]} 26...
Nb6 {[%clk 0:01:19]} 27. Nc5 {[%clk 0:00:39.6]} 27... Nd5 {[%clk 0:01:11.1]} 28.
Qd3 {[%clk 0:00:36.7]} 28... Rc8 {[%clk 0:01:00.1]} 29. Rxc8+ {[%clk 0:00:17.4]}
29... Rxc8 {[%clk 0:01:01]} 30. Ne4 {[%clk 0:00:15.3]} 30... Qc7 {[%clk
0:00:53.3]} 31. g3 {[%clk 0:00:13.5]} 31... Qc2 {[%clk 0:00:51.8]} 32. Qxc2
{[%clk 0:00:10.2]} 32... Rxc2 {[%clk 0:00:51.5]} 33. Rb1 {[%clk 0:00:08.6]}
33... Kf8 {[%clk 0:00:47.7]} 34. Kg2 {[%clk 0:00:05.5]} 34... h6 {[%clk
0:00:42.9]} 35. Kf3 {[%clk 0:00:05.8]} 35... Ke7 {[%clk 0:00:40.2]} 36. Bb2
{[%clk 0:00:06.1]} 36... Kd7 {[%clk 0:00:33.2]} 37. Bc1 {[%clk 0:00:05.7]} 37...
Kc7 {[%clk 0:00:23.4]} 0-1

[Event "Late-Titled-Tuesday-Blitz-March-12-2024"]
[Site "Chess.com"]
[Date "2024.03.12"]
[Round "10"]
[White "SlavenPastar"]
[Black "Byniolus"]
[Result "1-0"]
[WhiteElo "2578"]
[BlackElo "2749"]
[TimeControl "180+1"]
[EndTime "15:53:21 PDT"]
[Termination "SlavenPastar won by resignation"]

1. b3 {[%clk 0:03:00.9]} 1... b6 {[%clk 0:02:57.2]} 2. e4 {[%clk 0:03:00]} 2...
e6 {[%clk 0:02:57.4]} 3. Nc3 {[%clk 0:02:58.8]} 3... d6 {[%clk 0:02:57.6]} 4.
Nf3 {[%clk 0:02:58.8]} 4... a6 {[%clk 0:02:58.1]} 5. d4 {[%clk 0:02:59.3]} 5...
c6 {[%clk 0:02:58.4]} 6. Bd3 {[%clk 0:03:00]} 6... f6 {[%clk 0:02:58.8]} 7. O-O
{[%clk 0:02:56.9]} 7... g6 {[%clk 0:02:59.3]} 8. e5 {[%clk 0:02:56.3]} 8... dxe5
{[%clk 0:02:55.7]} 9. dxe5 {[%clk 0:02:51.5]} 9... f5 {[%clk 0:02:56.1]} 10. Bg5
{[%clk 0:02:49.2]} 10... Be7 {[%clk 0:02:52.3]} 11. Qd2 {[%clk 0:02:41.4]} 11...
Bxg5 {[%clk 0:02:41.8]} 12. Nxg5 {[%clk 0:02:38.1]} 12... h6 {[%clk 0:02:41.2]}
13. Nf3 {[%clk 0:02:38.2]} 13... Ne7 {[%clk 0:02:39.1]} 14. Ne2 {[%clk
0:02:32.2]} 14... Kf7 {[%clk 0:02:20.8]} 15. b4 {[%clk 0:02:27.4]} 15... g5
{[%clk 0:01:59.4]} 16. Rfd1 {[%clk 0:02:17.8]} 16... Nd7 {[%clk 0:01:53.9]} 17.
Bc4 {[%clk 0:02:12]} 17... Nd5 {[%clk 0:01:54]} 18. Bb3 {[%clk 0:02:08]} 18...
b5 {[%clk 0:01:49.2]} 19. a4 {[%clk 0:01:44.2]} 19... Bb7 {[%clk 0:01:42.3]} 20.
h3 {[%clk 0:01:29.7]} 20... Qe7 {[%clk 0:01:34.9]} 21. c3 {[%clk 0:01:24.6]}
21... Rhd8 {[%clk 0:01:31.6]} 22. Ned4 {[%clk 0:01:20]} 22... Nf8 {[%clk
0:01:17.6]} 23. Qc2 {[%clk 0:01:09.8]} 23... Ng6 {[%clk 0:01:06.4]} 24. Re1
{[%clk 0:00:53.2]} 24... Kg7 {[%clk 0:01:04.5]} 25. Rad1 {[%clk 0:00:43.1]}
25... Rd7 {[%clk 0:00:53.2]} 26. axb5 {[%clk 0:00:39.5]} 26... cxb5 {[%clk
0:00:48.4]} 27. Nxf5+ {[%clk 0:00:35.6]} 27... exf5 {[%clk 0:00:46.6]} 28. Nd4
{[%clk 0:00:34.3]} 28... Rf8 {[%clk 0:00:12.5]} 29. Nxf5+ {[%clk 0:00:32.5]}
29... Rxf5 {[%clk 0:00:13.4]} 30. Qxf5 {[%clk 0:00:33]} 30... Nf8 {[%clk
0:00:09.5]} 31. e6 {[%clk 0:00:29.2]} 31... Rd6 {[%clk 0:00:07.3]} 32. Bxd5
{[%clk 0:00:27.7]} 32... Bxd5 {[%clk 0:00:07.3]} 33. Rxd5 {[%clk 0:00:28.6]}
33... Rxe6 {[%clk 0:00:05.4]} 34. Rxe6 {[%clk 0:00:25.3]} 34... Qxe6 {[%clk
0:00:06.3]} 35. Qxe6 {[%clk 0:00:25.4]} 35... Nxe6 {[%clk 0:00:07.2]} 36. Rd6
{[%clk 0:00:25]} 36... Nf4 {[%clk 0:00:07.8]} 37. Rc6 {[%clk 0:00:21.4]} 1-0

[Event "Late-Titled-Tuesday-Blitz-March-12-2024"]
[Site "Chess.com"]
[Date "2024.03.12"]
[Round "10"]
[White "jcibarra"]
[Black "Casablanca"]
[Result "1-0"]
[WhiteElo "2921"]
[BlackElo "2588"]
[TimeControl "180+1"]
[EndTime "15:53:31 PDT"]
[Termination "jcibarra won by checkmate"]

1. e4 {[%clk 0:03:00.9]} 1... c5 {[%clk 0:03:00.3]} 2. Nf3 {[%clk 0:02:57]} 2...
d6 {[%clk 0:03:00.5]} 3. c3 {[%clk 0:02:56.8]} 3... Nf6 {[%clk 0:03:00.4]} 4. h3
{[%clk 0:02:57]} 4... e6 {[%clk 0:02:54.8]} 5. Bd3 {[%clk 0:02:56.4]} 5... Nc6
{[%clk 0:02:54.1]} 6. Bc2 {[%clk 0:02:56.9]} 6... Be7 {[%clk 0:02:54.6]} 7. d4
{[%clk 0:02:55.1]} 7... cxd4 {[%clk 0:02:54.5]} 8. cxd4 {[%clk 0:02:55.1]} 8...
Nb4 {[%clk 0:02:50.8]} 9. Ba4+ {[%clk 0:02:54.7]} 9... Bd7 {[%clk 0:02:50.4]}
10. Nc3 {[%clk 0:02:48.2]} 10... O-O {[%clk 0:02:46.5]} 11. Bb3 {[%clk
0:02:30.5]} 11... d5 {[%clk 0:02:29.8]} 12. e5 {[%clk 0:02:29.3]} 12... Ne4
{[%clk 0:02:30.1]} 13. O-O {[%clk 0:02:26.4]} 13... Nxc3 {[%clk 0:02:24.6]} 14.
bxc3 {[%clk 0:02:26.2]} 14... Nc6 {[%clk 0:02:25.5]} 15. Qd3 {[%clk 0:02:22.7]}
15... Rc8 {[%clk 0:02:17.9]} 16. Bc2 {[%clk 0:02:18.3]} 16... g6 {[%clk
0:02:18]} 17. Bh6 {[%clk 0:02:18.4]} 17... Re8 {[%clk 0:02:18.4]} 18. Rac1
{[%clk 0:02:13.2]} 18... Na5 {[%clk 0:02:12.1]} 19. Qe3 {[%clk 0:02:06.5]} 19...
Qc7 {[%clk 0:02:10.9]} 20. Bb1 {[%clk 0:02:00.9]} 20... Bb5 {[%clk 0:02:10.4]}
21. Rfe1 {[%clk 0:02:00.1]} 21... Nc4 {[%clk 0:02:09.9]} 22. Qf4 {[%clk
0:01:59.7]} 22... Na3 {[%clk 0:02:10]} 23. Ng5 {[%clk 0:01:52.5]} 23... Bd8
{[%clk 0:01:59.7]} 24. Re3 {[%clk 0:01:40.1]} 24... f5 {[%clk 0:01:27.9]} 25.
Nxe6 {[%clk 0:01:18]} 25... Rxe6 {[%clk 0:01:23.8]} 26. Bxf5 {[%clk 0:01:18.5]}
26... gxf5 {[%clk 0:00:45.8]} 27. Rg3+ {[%clk 0:01:16.4]} 27... Rg6 {[%clk
0:00:43]} 28. Qxf5 {[%clk 0:01:17.1]} 28... Bh4 {[%clk 0:00:25.5]} 29. Rxg6+
{[%clk 0:01:07.4]} 29... hxg6 {[%clk 0:00:26.4]} 30. Qxg6+ {[%clk 0:01:07.8]}
30... Kh8 {[%clk 0:00:27.1]} 31. Qh5 {[%clk 0:01:00.9]} 31... Bxf2+ {[%clk
0:00:14.5]} 32. Kxf2 {[%clk 0:00:59.6]} 32... Qh7 {[%clk 0:00:15.4]} 33. Qg5
{[%clk 0:00:43.5]} 33... Qf7+ {[%clk 0:00:15.7]} 34. Kg1 {[%clk 0:00:43]} 34...
Bd3 {[%clk 0:00:16.6]} 35. e6 {[%clk 0:00:36.7]} 35... Qg6 {[%clk 0:00:16.8]}
36. Qe5+ {[%clk 0:00:33.3]} 36... Kh7 {[%clk 0:00:16.8]} 37. Bg5 {[%clk
0:00:29.5]} 37... Be4 {[%clk 0:00:17.2]} 38. Rf1 {[%clk 0:00:27.6]} 38... Nc4
{[%clk 0:00:15.6]} 39. Qf4 {[%clk 0:00:20.6]} 39... Qxe6 {[%clk 0:00:08]} 40.
Qh4+ {[%clk 0:00:20.8]} 40... Kg8 {[%clk 0:00:08]} 41. Bf6 {[%clk 0:00:18.1]}
41... Qf7 {[%clk 0:00:07.1]} 42. Qh8# {[%clk 0:00:10.9]} 1-0

[Event "Late-Titled-Tuesday-Blitz-March-12-2024"]
[Site "Chess.com"]
[Date "2024.03.12"]
[Round "10"]
[White "emeli_chess"]
[Black "KorolDimitriy75"]
[Result "1-0"]
[WhiteElo "2400"]
[BlackElo "2416"]
[TimeControl "180+1"]
[EndTime "15:53:34 PDT"]
[Termination "emeli_chess won on time"]

1. d4 {[%clk 0:03:00.9]} 1... Nf6 {[%clk 0:02:59.8]} 2. c4 {[%clk 0:03:00.9]}
2... c5 {[%clk 0:03:00.2]} 3. d5 {[%clk 0:03:00.6]} 3... b5 {[%clk 0:03:00.5]}
4. cxb5 {[%clk 0:03:01.1]} 4... a6 {[%clk 0:03:00.8]} 5. b6 {[%clk 0:03:01.7]}
5... d6 {[%clk 0:03:00.8]} 6. Nc3 {[%clk 0:03:02.3]} 6... Nbd7 {[%clk 0:03:01]}
7. a4 {[%clk 0:03:02.3]} 7... a5 {[%clk 0:03:00.9]} 8. e4 {[%clk 0:03:01.4]}
8... g6 {[%clk 0:03:01]} 9. Bb5 {[%clk 0:02:59.4]} 9... Bg7 {[%clk 0:02:57.2]}
10. Nf3 {[%clk 0:02:58.8]} 10... O-O {[%clk 0:02:56.7]} 11. Qe2 {[%clk
0:02:54.3]} 11... Nxb6 {[%clk 0:02:55.9]} 12. O-O {[%clk 0:02:40.1]} 12... e6
{[%clk 0:02:56.1]} 13. Bc6 {[%clk 0:02:29.7]} 13... Rb8 {[%clk 0:02:52.4]} 14.
Nd2 {[%clk 0:02:23.1]} 14... exd5 {[%clk 0:02:46.9]} 15. exd5 {[%clk 0:02:21.4]}
15... Bd7 {[%clk 0:02:39.5]} 16. Qf3 {[%clk 0:02:00.4]} 16... Ng4 {[%clk
0:02:14.8]} 17. Re1 {[%clk 0:01:10.7]} 17... Ne5 {[%clk 0:02:13.8]} 18. Rxe5
{[%clk 0:01:10.4]} 18... dxe5 {[%clk 0:01:35.1]} 19. Nb5 {[%clk 0:01:06.6]}
19... Nxa4 {[%clk 0:01:00.2]} 20. Rxa4 {[%clk 0:01:03.3]} 20... Rxb5 {[%clk
0:00:42.4]} 21. Bxb5 {[%clk 0:01:01.7]} 21... Bxb5 {[%clk 0:00:43.3]} 22. Ra2
{[%clk 0:00:54.3]} 22... a4 {[%clk 0:00:29.9]} 23. b3 {[%clk 0:00:51.7]} 23...
axb3 {[%clk 0:00:20.3]} 24. Nxb3 {[%clk 0:00:49.4]} 24... Bc4 {[%clk 0:00:19.2]}
25. Rc2 {[%clk 0:00:45.5]} 25... Bxd5 {[%clk 0:00:13.8]} 26. Qc3 {[%clk
0:00:32.4]} 26... Bxb3 {[%clk 0:00:13.6]} 27. Rd2 {[%clk 0:00:32.7]} 27... Qb6
{[%clk 0:00:12.7]} 28. h4 {[%clk 0:00:30.3]} 28... c4 {[%clk 0:00:11.8]} 29. h5
{[%clk 0:00:30]} 29... e4 {[%clk 0:00:12]} 30. Qh3 {[%clk 0:00:28.2]} 30... c3
{[%clk 0:00:11]} 31. Rd7 {[%clk 0:00:26.3]} 31... Qd4 {[%clk 0:00:09.8]} 32.
Rxd4 {[%clk 0:00:25.5]} 32... Bxd4 {[%clk 0:00:09.6]} 33. Qd7 {[%clk 0:00:24.2]}
33... Bg7 {[%clk 0:00:07.4]} 34. h6 {[%clk 0:00:23.8]} 34... Bh8 {[%clk
0:00:07.2]} 35. Qc7 {[%clk 0:00:22.6]} 35... Bd1 {[%clk 0:00:05.4]} 36. Ba3
{[%clk 0:00:21.2]} 36... Ra8 {[%clk 0:00:02.7]} 37. g3 {[%clk 0:00:17.1]} 37...
c2 {[%clk 0:00:02.5]} 38. Kh2 {[%clk 0:00:15.6]} 1-0

[Event "Late-Titled-Tuesday-Blitz-March-12-2024"]
[Site "Chess.com"]
[Date "2024.03.12"]
[Round "10"]
[White "Szparu"]
[Black "newyorkmouse"]
[Result "1-0"]
[WhiteElo "2792"]
[BlackElo "2593"]
[TimeControl "180+1"]
[EndTime "15:53:35 PDT"]
[Termination "Szparu won by resignation"]

1. d4 {[%clk 0:03:00.9]} 1... Nf6 {[%clk 0:02:58.2]} 2. c4 {[%clk 0:03:01.1]}
2... a6 {[%clk 0:02:58.6]} 3. g3 {[%clk 0:02:58.6]} 3... c5 {[%clk 0:02:55.2]}
4. dxc5 {[%clk 0:02:51.1]} 4... e6 {[%clk 0:02:54.8]} 5. Be3 {[%clk 0:02:47.2]}
5... Ng4 {[%clk 0:02:48.7]} 6. Bd4 {[%clk 0:02:47.4]} 6... e5 {[%clk 0:02:48.5]}
7. Bc3 {[%clk 0:02:47.5]} 7... Bxc5 {[%clk 0:02:48.1]} 8. e3 {[%clk 0:02:48]}
8... d6 {[%clk 0:02:45.4]} 9. Bg2 {[%clk 0:02:46.7]} 9... h5 {[%clk 0:02:39.1]}
10. Nd2 {[%clk 0:02:46.3]} 10... h4 {[%clk 0:02:34.6]} 11. Ne4 {[%clk
0:02:46.1]} 11... hxg3 {[%clk 0:02:34.5]} 12. hxg3 {[%clk 0:02:46.2]} 12... Rxh1
{[%clk 0:02:32.1]} 13. Bxh1 {[%clk 0:02:47.1]} 13... Qc7 {[%clk 0:02:26.3]} 14.
b4 {[%clk 0:02:45.8]} 14... f5 {[%clk 0:02:18.6]} 15. bxc5 {[%clk 0:02:36.1]}
15... fxe4 {[%clk 0:02:14.7]} 16. Qxd6 {[%clk 0:02:36.2]} 16... Qf7 {[%clk
0:02:09.8]} 17. O-O-O {[%clk 0:02:34.6]} 17... Qxc4 {[%clk 0:01:52.3]} 18. Qg6+
{[%clk 0:02:27.4]} 18... Ke7 {[%clk 0:01:50]} 19. Qxg7+ {[%clk 0:02:26.5]} 19...
Ke8 {[%clk 0:01:49.8]} 20. Ne2 {[%clk 0:02:18.9]} 20... Nc6 {[%clk 0:01:33.3]}
21. Qh8+ {[%clk 0:02:14.8]} 21... Ke7 {[%clk 0:01:29.4]} 22. Qh7+ {[%clk
0:02:07.6]} 22... Ke8 {[%clk 0:01:29.8]} 23. Bxe4 {[%clk 0:02:05.1]} 23... Be6
{[%clk 0:00:40]} 24. Bg6+ {[%clk 0:01:59.6]} 24... Kf8 {[%clk 0:00:39.5]} 25.
Qh8+ {[%clk 0:01:46.9]} 25... Bg8 {[%clk 0:00:39.9]} 26. Rd7 {[%clk 0:01:40]}
26... Ne7 {[%clk 0:00:32.6]} 27. Bh5 {[%clk 0:01:02.5]} 27... Qxe2 {[%clk
0:00:01.9]} 28. Bxg4 {[%clk 0:01:02.7]} 28... Qf1+ {[%clk 0:00:02.2]} 29. Rd1
{[%clk 0:00:52.3]} 29... Qxf2 {[%clk 0:00:03.1]} 30. Qh6+ {[%clk 0:00:51.7]}
30... Ke8 {[%clk 0:00:03]} 31. Bh5+ {[%clk 0:00:52]} 31... Bf7 {[%clk 0:00:03]}
32. Qh8+ {[%clk 0:00:52.3]} 32... Ng8 {[%clk 0:00:03.5]} 33. Qxg8+ {[%clk
0:00:52.6]} 33... Ke7 {[%clk 0:00:04.2]} 34. Qxf7+ {[%clk 0:00:40.8]} 34... Qxf7
{[%clk 0:00:03.8]} 35. Bxf7 {[%clk 0:00:41.4]} 35... Kxf7 {[%clk 0:00:04.7]} 36.
Bxe5 {[%clk 0:00:41.8]} 36... Ke6 {[%clk 0:00:05]} 37. Bf4 {[%clk 0:00:42]}
37... a5 {[%clk 0:00:05.6]} 38. e4 {[%clk 0:00:42.3]} 38... a4 {[%clk
0:00:06.2]} 39. Rd6+ {[%clk 0:00:43.2]} 39... Ke7 {[%clk 0:00:06.2]} 40. g4
{[%clk 0:00:44.1]} 40... a3 {[%clk 0:00:06.6]} 41. g5 {[%clk 0:00:44.6]} 41...
b5 {[%clk 0:00:07.2]} 42. g6 {[%clk 0:00:45]} 42... b4 {[%clk 0:00:06.8]} 43.
Bg5+ {[%clk 0:00:45.5]} 43... Kf8 {[%clk 0:00:05.3]} 44. e5 {[%clk 0:00:46.4]}
44... Kg7 {[%clk 0:00:05.1]} 45. Kc2 {[%clk 0:00:45.2]} 45... b3+ {[%clk
0:00:03.4]} 46. Kxb3 {[%clk 0:00:46.1]} 46... Rb8+ {[%clk 0:00:03.3]} 47. Kxa3
{[%clk 0:00:46.1]} 47... Ra8+ {[%clk 0:00:04.1]} 48. Kb3 {[%clk 0:00:46.6]}
48... Rb8+ {[%clk 0:00:04.8]} 49. Kc4 {[%clk 0:00:47.2]} 49... Ra8 {[%clk
0:00:05.5]} 50. Kd5 {[%clk 0:00:48.1]} 50... Rb8 {[%clk 0:00:06]} 51. e6 {[%clk
0:00:46.7]} 51... Ra8 {[%clk 0:00:04.8]} 52. e7 {[%clk 0:00:47.1]} 52... Rd8
{[%clk 0:00:04.1]} 53. Rxd8 {[%clk 0:00:42.9]} 53... Kxg6 {[%clk 0:00:03.8]} 54.
e8=Q+ {[%clk 0:00:42.3]} 54... Kf5 {[%clk 0:00:04.4]} 55. Qe4+ {[%clk
0:00:40.2]} 55... Kxg5 {[%clk 0:00:04]} 56. Rg8+ {[%clk 0:00:40.8]} 1-0